bitfinex/quotes_BTCUSD_20240815
["timestamp","ask_amount","ask_price","bid_price","bid_amount"]
[1723758500254,0.0891,57383.0,57382.0,0.418249]
[1723758500943,0.0891,57383.0,57382.0,0.139416]
[1723758501228,0.146421,57380.0,57379.0,0.001819]
[1723758501473,0.351821,57380.0,57379.0,0.000819]
[1723758501721,0.449521,57380.0,57379.0,0.000819]
[1723758501930,0.73601248,57380.0,57379.0,0.000819]
[1723758503298,0.73701248,57380.0,57379.0,0.000819]
[1723758503962,0.63931248,57380.0,57379.0,0.000819]
[1723758504163,0.64631248,57380.0,57379.0,0.001819]
[1723758504372,0.64531248,57380.0,57379.0,0.001819]
[1723758514661,0.22704948,57380.0,57379.0,0.001819]
[1723758519274,0.01464948,57380.0,57379.0,0.001819]
[1723758521813,0.24154248,57380.0,57379.0,0.001819]
[1723758521999,0.48552948,57380.0,57379.0,0.001819]
[1723758523131,0.57962948,57380.0,57379.0,0.001819]
[1723758524519,0.63184136,57380.0,57379.0,0.001819]
[1723758525323,0.6579473,57380.0,57379.0,0.001819]
[1723758525554,0.65706747,57380.0,57379.0,0.001819]
[1723758525757,0.76191785,57380.0,57379.0,0.001819]
[1723758525957,0.75502067,57380.0,57379.0,0.001819]
[1723758526157,0.67722948,57380.0,57379.0,0.001819]
[1723758527072,0.7550358,57380.0,57379.0,0.001819]
[1723758527696,0.85954295,57380.0,57379.0,0.001819]
[1723758528640,0.7550358,57380.0,57379.0,0.001819]
[1723758528843,1.11197695,57380.0,57379.0,0.001819]
[1723758529429,1.183816,57380.0,57379.0,0.001819]
[1723758532641,1.07086185,57380.0,57379.0,0.001819]
[1723758532845,1.31484885,57380.0,57379.0,0.001819]
[1723758533065,1.45585691,57380.0,57379.0,0.001819]
[1723758533294,1.45485691,57380.0,57379.0,0.001819]
[1723758533717,1.4463527,57380.0,57379.0,0.001819]
[1723758533928,1.2023657,57380.0,57379.0,0.001819]
[1723758534106,1.06222299,57380.0,57379.0,0.001819]
[1723758534579,1.07117958,57380.0,57379.0,0.001819]
[1723758534794,1.23475031,57380.0,57379.0,0.001819]
[1723758535014,1.21411259,57380.0,57379.0,0.001819]
[1723758535215,1.07396988,57380.0,57379.0,0.001819]
[1723758535632,1.23070482,57380.0,57379.0,0.001819]
[1723758535864,1.07396988,57380.0,57379.0,0.001819]
[1723758536079,1.23070129,57380.0,57379.0,0.001819]
[1723758536290,1.07396988,57380.0,57379.0,0.001819]
[1723758536696,1.23068651,57380.0,57379.0,0.001819]
[1723758537362,1.23067453,57380.0,57379.0,0.001819]
[1723758537972,1.23322122,57380.0,57379.0,0.001819]
[1723758539239,1.07651769,57380.0,57379.0,0.001819]
[1723758539442,0.97891769,57380.0,57379.0,0.001819]
[1723758539692,1.07351769,57380.0,57379.0,0.001819]
[1723758539899,1.22821765,57380.0,57379.0,0.001819]
[1723758540103,1.07651769,57380.0,57379.0,0.001819]
[1723758540754,1.23322122,57380.0,57379.0,0.001819]
[1723758541193,1.22672778,57380.0,57379.0,0.001819]
[1723758541396,1.47071478,57380.0,57379.0,0.001819]
[1723758542012,2.04337355,57380.0,57379.0,0.001819]
[1723758542243,1.80138655,57380.0,57379.0,0.001819]
[1723758542454,2.22162398,57380.0,57379.0,0.001819]
[1723758542675,2.04537355,57380.0,57379.0,0.001819]
[1723758542912,2.03837355,57380.0,57379.0,0.000819]
[1723758543165,2.03837355,57380.0,57379.0,0.001819]
[1723758543378,2.04837355,57380.0,57379.0,0.002819]
[1723758543624,2.04837355,57380.0,57379.0,0.000819]
[1723758543625,2.03837355,57380.0,57379.0,0.000819]
[1723758544382,2.03837355,57380.0,57363.0,0.51466362]
[1723758544383,0.610137,57364.0,57363.0,0.51466362]
[1723758544596,0.88448497,57364.0,57363.0,0.51466362]
[1723758544864,0.88448497,57364.0,57362.0,0.00082]
[1723758544865,0.610147,57363.0,57362.0,0.00082]
[1723758545093,1.04995589,57363.0,57362.0,0.00082]
[1723758545319,1.05188511,57363.0,57362.0,0.00082]
[1723758545557,1.18060662,57363.0,57362.0,0.00082]
[1723758545792,1.28480662,57363.0,57362.0,0.00082]
[1723758546016,1.15236103,57363.0,57362.0,0.00082]
[1723758546586,1.32391557,57363.0,57362.0,0.00082]
[1723758546832,1.33191557,57363.0,57362.0,0.00182]
[1723758547082,1.50882396,57363.0,57362.0,0.00182]
[1723758547327,1.50982396,57363.0,57362.0,0.00182]
[1723758547563,1.42993926,57363.0,57362.0,0.00082]
[1723758547804,1.42993926,57363.0,57362.0,0.00182]
[1723758547805,1.91644948,57363.0,57362.0,0.00182]
[1723758548011,2.01644948,57363.0,57362.0,0.00182]
[1723758548212,2.06904377,57363.0,57362.0,0.00182]
[1723758548431,2.11386835,57363.0,57362.0,0.00182]
[1723758549167,2.12286837,57363.0,57362.0,0.00182]
[1723758549367,1.9664812,57363.0,57362.0,0.00182]
[1723758551937,1.9654812,57363.0,57362.0,0.00182]
[1723758552140,1.9664812,57363.0,57362.0,0.00182]
[1723758552343,1.9654812,57363.0,57362.0,0.00182]
[1723758553188,1.9664812,57363.0,57362.0,0.00182]
[1723758553914,2.2105402,57363.0,57362.0,0.00182]
[1723758554120,2.2105402,57363.0,57342.0,0.51466362]
[1723758554121,0.219672,57343.0,57342.0,0.51466362]
[1723758554328,0.71677054,57343.0,57342.0,0.51466362]
[1723758554529,0.366274,57334.0,57333.0,0.1004]
[1723758554737,0.463874,57334.0,57333.0,0.1004]
[1723758555555,0.122101,57330.0,57328.0,0.0973]
[1723758556194,0.244192,57332.0,57328.0,0.0973]
[1723758556414,0.122099,57331.0,57328.0,0.0973]
[1723758558118,0.122101,57330.0,57328.0,0.0973]
[1723758558325,0.0366289,57329.0,57328.0,0.0973]
[1723758558529,0.0366289,57329.0,57328.0,0.1003]
[1723758558964,0.0366289,57329.0,57328.0,0.0973]
[1723758558965,0.1587309,57329.0,57328.0,0.0973]
[1723758559170,0.1587309,57329.0,57328.0,0.1003]
[1723758559750,0.1587309,57329.0,57328.0,0.0973]
[1723758559953,0.1597309,57329.0,57328.0,0.1003]
[1723758560563,0.1607309,57329.0,57328.0,0.1003]
[1723758560765,0.1597309,57329.0,57328.0,0.1003]
[1723758561169,0.1607309,57329.0,57328.0,0.1003]
[1723758561370,0.1597309,57329.0,57328.0,0.0973]
[1723758561585,0.1597309,57329.0,57328.0,0.098121]
[1723758561791,0.1597309,57329.0,57328.0,0.100121]
[1723758562207,0.1597309,57329.0,57328.0,0.098121]
[1723758562634,0.1597309,57329.0,57328.0,0.100121]
[1723758563214,0.6481389,57329.0,57328.0,0.002821]
[1723758563415,0.61151,57329.0,57328.0,0.002821]
[1723758565742,0.60919536,57329.0,57328.0,0.002821]
[1723758569814,0.85339936,57329.0,57328.0,0.002821]
[1723758570020,0.94985516,57329.0,57328.0,0.002821]
[1723758570466,1.1214097,57329.0,57328.0,0.002821]
[1723758570806,1.2009097,57329.0,57328.0,0.002821]
[1723758572031,1.5500097,57329.0,57328.0,0.002821]
[1723758572849,1.5500097,57329.0,57328.0,0.000821]
[1723758573045,1.5540097,57329.0,57328.0,0.000821]
[1723758573465,1.5530097,57329.0,57328.0,0.000821]
[1723758573667,1.5600097,57329.0,57328.0,0.000821]
[1723758574219,1.5530097,57329.0,57328.0,0.000821]
[1723758574424,1.5570097,57329.0,57328.0,0.000821]
[1723758574619,1.5610097,57329.0,57328.0,0.000821]
[1723758575237,1.56191281,57329.0,57328.0,0.000821]
[1723758575460,1.56091281,57329.0,57328.0,0.000821]
[1723758576943,1.56191281,57329.0,57328.0,0.000821]
[1723758577768,1.56091281,57329.0,57328.0,0.000821]
[1723758577978,1.51441281,57329.0,57328.0,0.000821]
[1723758579941,1.51741281,57329.0,57328.0,0.000821]
[1723758580588,1.58939415,57329.0,57328.0,0.000821]
[1723758581504,1.59039415,57329.0,57328.0,0.000821]
[1723758581732,1.77459415,57329.0,57328.0,0.000821]
[1723758582202,1.77559415,57329.0,57328.0,0.000821]
[1723758583889,1.67779415,57329.0,57328.0,0.000821]
[1723758584091,1.77559415,57329.0,57328.0,0.000821]
[1723758585803,1.77159415,57329.0,57328.0,0.000821]
[1723758586002,1.78459415,57329.0,57328.0,0.000821]
[1723758586200,1.77759415,57329.0,57328.0,0.000821]
[1723758586406,1.79159415,57329.0,57328.0,0.000821]
[1723758586632,1.77759415,57329.0,57328.0,0.000821]
[1723758587083,1.79159415,57329.0,57328.0,0.000821]
[1723758587495,2.03579815,57329.0,57328.0,0.000821]
[1723758587899,2.10088359,57329.0,57328.0,0.000821]
[1723758588110,2.11488359,57329.0,57328.0,0.000821]
[1723758588280,2.14070538,57329.0,57328.0,0.000821]
[1723758590326,2.11490379,57329.0,57328.0,0.000821]
[1723758590527,2.11492861,57329.0,57328.0,0.000821]
[1723758591331,2.03679815,57329.0,57328.0,0.000821]
[1723758592041,2.16668219,57329.0,57328.0,0.000821]
[1723758593426,2.03679815,57329.0,57328.0,0.000821]
[1723758596385,2.164659,57329.0,57328.0,0.000821]
[1723758596542,2.178659,57329.0,57328.0,0.000821]
[1723758596747,2.192659,57329.0,57328.0,0.000821]
[1723758597151,2.178659,57329.0,57328.0,0.000821]
[1723758597363,2.07781071,57329.0,57328.0,0.000821]
[1723758597565,2.09181071,57329.0,57328.0,0.000821]
[1723758599063,2.07781071,57329.0,57328.0,0.000821]
[1723758599224,1.98701071,57329.0,57328.0,0.000821]
[1723758599456,1.81486939,57329.0,57328.0,0.091421]
[1723758599627,1.91266939,57329.0,57328.0,0.148421]
[1723758599801,1.75404235,57329.0,57328.0,0.148421]
[1723758600161,1.31163835,57329.0,57328.0,0.148421]
[1723758600303,1.32563835,57329.0,57328.0,0.148421]
[1723758600508,1.31163835,57329.0,57328.0,0.091421]
[1723758600708,1.45957076,57329.0,57328.0,0.091421]
[1723758601111,1.47057076,57329.0,57328.0,0.091421]
[1723758601338,1.47357076,57329.0,57328.0,0.091421]
[1723758601536,1.45657076,57329.0,57328.0,0.091421]
[1723758602008,1.47157076,57329.0,57328.0,0.091421]
[1723758602211,0.95701222,57329.0,57328.0,0.091421]
[1723758602426,0.66267581,57329.0,57328.0,0.091421]
[1723758602828,0.99732565,57329.0,57328.0,0.091421]
[1723758603068,0.89287981,57329.0,57328.0,0.091421]
[1723758603276,0.64867581,57329.0,57328.0,0.091421]
[1723758603470,0.84071172,57329.0,57328.0,0.091421]
[1723758603683,0.85471172,57329.0,57328.0,0.091421]
[1723758603877,0.72701799,57329.0,57328.0,0.091421]
[1723758604085,0.71301799,57329.0,57328.0,0.091421]
[1723758604301,0.72701799,57329.0,57328.0,0.091421]
[1723758604717,0.74101799,57329.0,57328.0,0.091421]
[1723758604911,0.72701799,57329.0,57328.0,0.091421]
[1723758605343,0.74101799,57329.0,57328.0,0.091421]
[1723758605555,0.71491132,57329.0,57328.0,0.091421]
[1723758605767,0.64292998,57329.0,57328.0,0.091421]
[1723758605971,0.59069447,57329.0,57328.0,0.091421]
[1723758606181,0.12670311,57329.0,57328.0,0.091421]
[1723758606390,0.12670311,57329.0,57328.0,0.148421]
[1723758606623,0.24880511,57329.0,57328.0,0.148421]
[1723758607036,0.22080511,57329.0,57328.0,0.148421]
[1723758607235,0.01390311,57329.0,57328.0,0.148421]
[1723758607445,0.02790311,57329.0,57328.0,0.148421]
[1723758607868,0.02790311,57329.0,57328.0,0.270525]
[1723758608109,0.01490311,57329.0,57328.0,0.270525]
[1723758608522,0.01490311,57329.0,57328.0,0.514733]
[1723758608733,0.01490311,57329.0,57328.0,0.270525]
[1723758609160,0.02790311,57329.0,57328.0,0.270525]
[1723758609398,0.02790311,57329.0,57328.0,0.514733]
[1723758610263,0.01490311,57329.0,57328.0,0.758941]
[1723758610700,0.01890311,57329.0,57328.0,0.758941]
[1723758610941,0.01890311,57329.0,57328.0,1.27250354]
[1723758611164,0.01490311,57329.0,57328.0,1.29550354]
[1723758611372,0.01590311,57329.0,57328.0,1.29550354]
[1723758611579,0.00190311,57329.0,57328.0,1.29550354]
[1723758612041,0.01490311,57329.0,57328.0,1.29550354]
[1723758612252,0.01490311,57329.0,57328.0,1.29650354]
[1723758612253,0.00090311,57329.0,57328.0,1.29650354]
[1723758612462,0.00090311,57329.0,57328.0,1.39650354]
[1723758612880,0.00090311,57329.0,57328.0,1.64071154]
[1723758613086,0.00090311,57329.0,57328.0,1.64271154]
[1723758613497,0.00090311,57329.0,57328.0,1.64171154]
[1723758613910,0.00090311,57329.0,57328.0,1.64571154]
[1723758614339,0.0978,57355.0,57353.0,0.0891]
[1723758614811,0.0978,57355.0,57354.0,0.122049]
[1723758615018,0.00090311,57359.0,57354.0,0.122049]
[1723758615225,0.122041,57358.0,57353.0,0.21115]
[1723758615430,0.122042,57357.0,57353.0,0.0891]
[1723758615632,0.0978,57357.0,57354.0,0.122048]
[1723758615858,0.0978,57357.0,57353.0,0.0891]
[1723758615859,0.219842,57357.0,57353.0,0.0891]
[1723758616071,0.0978,57357.0,57353.0,0.0891]
[1723758616289,0.0978,57357.0,57354.0,0.122048]
[1723758616515,0.0978,57357.0,57355.0,0.122046]
[1723758616730,0.0978,57357.0,57353.0,0.0891]
[1723758616934,0.0978,57357.0,57354.0,0.122048]
[1723758618185,0.1118,57357.0,57354.0,0.122048]
[1723758618594,0.1118,57357.0,57353.0,0.21115]
[1723758618801,0.219843,57357.0,57353.0,0.21115]
[1723758619011,0.247843,57357.0,57353.0,0.21115]
[1723758619420,0.1258,57357.0,57354.0,0.122047]
[1723758619839,0.014,57357.0,57354.0,0.244097]
[1723758620059,0.014,57357.0,57353.0,0.21115]
[1723758620060,0.028,57357.0,57353.0,0.21115]
[1723758620466,0.122041,57358.0,57353.0,0.21115]
[1723758620677,0.136042,57357.0,57353.0,0.21115]
[1723758621310,0.122042,57357.0,57353.0,0.21115]
[1723758621720,0.136042,57357.0,57353.0,0.21115]
[1723758621926,0.122042,57357.0,57353.0,0.21115]
[1723758622134,0.009,57357.0,57354.0,0.244097]
[1723758622346,0.022,57357.0,57356.0,0.122044]
[1723758622958,0.022,57357.0,57356.0,0.209944]
[1723758623133,0.009,57357.0,57356.0,0.209944]
[1723758623341,0.013,57357.0,57356.0,0.209944]
[1723758623910,0.022,57357.0,57356.0,0.92127654]
[1723758624122,0.02290311,57357.0,57356.0,0.92127654]
[1723758624343,0.01390311,57357.0,57356.0,0.92127654]
[1723758624567,0.02290311,57357.0,57356.0,0.92227654]
[1723758624789,0.00990311,57357.0,57356.0,0.92227654]
[1723758625014,0.02290311,57357.0,57356.0,0.92227654]
[1723758625235,0.01390311,57357.0,57356.0,0.92127654]
[1723758625439,0.01390311,57357.0,57356.0,1.16636554]
[1723758625440,0.00690311,57357.0,57356.0,1.16636554]
[1723758625647,0.01590311,57357.0,57356.0,1.16636554]
[1723758625816,0.01590311,57357.0,57356.0,1.18936554]
[1723758626225,0.01590311,57357.0,57356.0,1.28716554]
[1723758626432,0.00690311,57357.0,57356.0,1.28716554]
[1723758626627,0.00090311,57357.0,57356.0,1.28616554]
[1723758627035,0.00290311,57357.0,57356.0,1.28616554]
[1723758627474,0.00090311,57357.0,57356.0,1.28616554]
[1723758627842,0.00590311,57357.0,57356.0,1.19136554]
[1723758628041,0.00090311,57357.0,57356.0,1.29826079]
[1723758628245,0.00090311,57357.0,57356.0,1.29526079]
[1723758628444,0.00090311,57357.0,57356.0,1.29626079]
[1723758628652,0.00190311,57357.0,57356.0,1.30126079]
[1723758629407,0.00190311,57357.0,57356.0,1.30026079]
[1723758629567,0.00190311,57357.0,57356.0,1.30126079]
[1723758629993,0.00190311,57357.0,57356.0,1.40126079]
[1723758630571,0.00090311,57357.0,57356.0,1.39626079]
[1723758630823,0.00190311,57357.0,57356.0,1.40226079]
[1723758631053,0.00190311,57357.0,57356.0,1.69104917]
[1723758631459,0.00190311,57357.0,57356.0,1.68504917]
[1723758631460,0.00090311,57357.0,57356.0,1.68504917]
[1723758631665,0.00190311,57357.0,57356.0,1.69004917]
[1723758631994,0.00290311,57357.0,57356.0,1.69104917]
[1723758632409,0.00290311,57357.0,57356.0,1.69204917]
[1723758632629,0.00390311,57357.0,57356.0,1.69204917]
[1723758633545,0.00390311,57357.0,57356.0,1.64734979]
[1723758633965,0.00390311,57357.0,57356.0,1.64934979]
[1723758634171,0.00390311,57357.0,57356.0,1.64734979]
[1723758634389,0.00390311,57357.0,57356.0,1.64934979]
[1723758634595,0.00390311,57357.0,57356.0,1.64734979]
[1723758634808,0.00090311,57357.0,57356.0,1.64434979]
[1723758635020,0.00090311,57359.0,57358.0,1.246864]
[1723758635229,0.51466362,57375.0,57358.0,1.246864]
[1723758635230,0.51466362,57375.0,57374.0,0.215906]
[1723758635434,0.51466362,57375.0,57374.0,0.459918]
[1723758635652,0.0098755,57375.0,57374.0,0.459918]
[1723758635878,0.0098755,57375.0,57374.0,0.89848454]
[1723758636098,0.00090311,57380.0,57379.0,0.121995]
[1723758636342,0.00090311,57380.0,57379.0,0.365986]
[1723758636574,0.01075053,57380.0,57379.0,0.365986]
[1723758636826,0.01075053,57380.0,57379.0,0.78153154]
[1723758636827,0.00090311,57380.0,57379.0,0.78153154]
[1723758637876,0.00090311,57380.0,57379.0,0.78253154]
[1723758637877,0.00690311,57380.0,57379.0,0.78253154]
[1723758638487,0.00690311,57380.0,57379.0,0.87803154]
[1723758638689,0.00690311,57380.0,57379.0,0.87903154]
[1723758638690,0.01590311,57380.0,57379.0,0.87903154]
[1723758639117,0.01590311,57380.0,57379.0,0.90203154]
[1723758640204,0.01590311,57380.0,57379.0,1.14602254]
[1723758641512,0.01590311,57380.0,57379.0,0.90203154]
[1723758642452,0.0132391,57407.0,57380.0,0.0922]
[1723758642666,0.0132391,57407.0,57406.0,0.78766727]
[1723758642667,0.0112391,57407.0,57406.0,0.78766727]
[1723758642887,0.0112391,57407.0,57406.0,1.12934327]
[1723758643103,0.0112391,57407.0,57406.0,1.043566]
[1723758643290,0.0112391,57407.0,57406.0,1.13160022]
[1723758643612,0.0112391,57407.0,57406.0,1.15460022]
[1723758643613,0.0202391,57407.0,57406.0,1.15460022]
[1723758643835,0.0202391,57407.0,57406.0,1.05680022]
[1723758644043,0.0112391,57407.0,57406.0,1.22835476]
[1723758644253,0.0222391,57407.0,57406.0,1.22835476]
[1723758644455,0.0232391,57407.0,57406.0,1.24235476]
[1723758644657,0.0122391,57407.0,57406.0,1.24235476]
[1723758644858,0.0122391,57407.0,57406.0,1.25635476]
[1723758644859,0.0132391,57407.0,57406.0,1.25635476]
[1723758645065,0.0122391,57407.0,57406.0,1.24235476]
[1723758645337,0.0112391,57407.0,57406.0,1.22835476]
[1723758645519,0.0122391,57407.0,57406.0,1.24235476]
[1723758645923,0.0112391,57407.0,57406.0,1.22835476]
[1723758647356,0.0112391,57407.0,57406.0,1.13615476]
[1723758647589,0.0122391,57407.0,57406.0,1.15015476]
[1723758647736,0.0132391,57407.0,57406.0,1.16415476]
[1723758648154,0.0122391,57407.0,57406.0,1.15015476]
[1723758648547,0.0132391,57407.0,57406.0,1.16415476]
[1723758649355,0.01414221,57407.0,57406.0,1.16415476]
[1723758652348,0.01414221,57407.0,57406.0,1.40803076]
[1723758652598,0.01414221,57407.0,57406.0,1.16415476]
[1723758654795,0.01414221,57407.0,57406.0,1.40803076]
[1723758656436,0.01414221,57407.0,57406.0,1.16415476]
[1723758656844,0.01414221,57407.0,57406.0,1.40803076]
[1723758658024,0.01414221,57407.0,57406.0,1.65001495]
[1723758658227,0.01414221,57407.0,57406.0,1.75001495]
[1723758658635,0.01414221,57407.0,57406.0,1.99389095]
[1723758658853,0.01414221,57407.0,57406.0,1.75001495]
[1723758659300,0.01414221,57407.0,57406.0,1.99389095]
[1723758660262,0.01414221,57407.0,57406.0,1.75001495]
[1723758660702,0.01414221,57407.0,57406.0,1.75401495]
[1723758661528,0.01414221,57407.0,57406.0,1.99789095]
[1723758661745,0.01414221,57407.0,57406.0,1.75201495]
[1723758661911,0.01414221,57407.0,57406.0,1.75001495]
[1723758662111,0.01414221,57407.0,57406.0,1.57391495]
[1723758662287,0.01414221,57407.0,57406.0,1.29699654]
[1723758664501,0.01414221,57407.0,57406.0,1.31999654]
[1723758668303,0.01414221,57407.0,57406.0,1.07612054]
[1723758670035,0.08674221,57407.0,57406.0,1.07612054]
[1723758671069,0.08674221,57407.0,57406.0,0.83224454]
[1723758671266,0.08674221,57407.0,57406.0,0.80924454]
[1723758671695,0.08674221,57407.0,57406.0,1.07612054]
[1723758671896,0.01414221,57407.0,57406.0,1.07612054]
[1723758672542,0.18004221,57407.0,57406.0,0.79524454]
[1723758672776,0.08894221,57407.0,57406.0,0.79524454]
[1723758672953,0.08994221,57407.0,57406.0,0.82524454]
[1723758673155,0.08894221,57407.0,57406.0,0.81124454]
[1723758673360,0.18054221,57407.0,57406.0,0.81124454]
[1723758673567,0.18154221,57407.0,57406.0,0.82124454]
[1723758673763,0.18154221,57407.0,57406.0,0.55436854]
[1723758674017,0.18054221,57407.0,57406.0,0.128938]
[1723758674189,0.33272523,57407.0,57406.0,0.007]
[1723758674388,0.31323083,57407.0,57406.0,0.017]
[1723758674592,0.55710283,57407.0,57406.0,0.017]
[1723758674792,0.55710283,57407.0,57406.0,0.01]
[1723758674793,0.55610283,57407.0,57406.0,0.01]
[1723758674990,0.0932,57404.0,57398.0,0.243908]
[1723758675208,0.02189483,57407.0,57392.0,0.32927727]
[1723758675209,0.1659,57402.0,57399.0,0.121952]
[1723758675391,0.0757,57401.0,57399.0,0.121953]
[1723758675654,0.0757,57401.0,57393.0,0.08577727]
[1723758675871,0.00976354,57400.0,57398.0,0.121954]
[1723758676327,0.0757,57401.0,57399.0,0.001]
[1723758676556,0.121945,57403.0,57399.0,0.001]
[1723758676768,0.00976996,57400.0,57399.0,0.001]
[1723758676993,0.1625,57402.0,57398.0,0.121953]
[1723758677226,0.243885,57404.0,57399.0,0.62319081]
[1723758677227,0.00981267,57400.0,57399.0,0.62319081]
[1723758677450,0.0725,57404.0,57403.0,0.121944]
[1723758677941,0.1645,57404.0,57399.0,0.243906]
[1723758678174,0.01214221,57407.0,57399.0,0.124952]
[1723758678175,0.076,57400.0,57399.0,0.124952]
[1723758678613,0.076,57400.0,57399.0,0.003]
[1723758678614,0.08574429,57400.0,57399.0,0.003]
[1723758678822,0.17784429,57400.0,57399.0,0.003]
[1723758679038,0.29979529,57400.0,57399.0,0.003]
[1723758679585,0.29979529,57400.0,57399.0,0.005]
[1723758679812,0.37875282,57400.0,57399.0,0.002]
[1723758680035,0.54369729,57400.0,57399.0,0.002]
[1723758681088,0.78759929,57400.0,57399.0,0.002]
[1723758681305,0.78759929,57400.0,57395.0,0.00082]
[1723758681306,0.121959,57396.0,57395.0,0.00082]
[1723758681516,0.292359,57396.0,57395.0,0.00082]
[1723758681730,0.30205876,57396.0,57395.0,0.00082]
[1723758682153,0.18009976,57396.0,57395.0,0.122781]
[1723758682363,0.18009976,57396.0,57395.0,0.00082]
[1723758682795,0.18009976,57396.0,57395.0,0.00282]
[1723758683026,0.18009976,57396.0,57395.0,0.00682]
[1723758683675,0.18009976,57396.0,57395.0,0.128781]
[1723758683897,0.18009976,57396.0,57395.0,0.00682]
[1723758685884,0.18009976,57396.0,57395.0,0.128781]
[1723758686756,0.18009976,57396.0,57395.0,0.00682]
[1723758689398,0.30205876,57396.0,57395.0,0.00682]
[1723758689592,0.18009976,57396.0,57395.0,0.00682]
[1723758696815,0.18009976,57396.0,57395.0,0.128781]
[1723758697242,0.08619976,57396.0,57395.0,0.372704]
[1723758698298,0.08710176,57396.0,57395.0,0.372704]
[1723758698702,0.01060176,57396.0,57395.0,1.14430454]
[1723758699121,0.000902,57396.0,57395.0,1.14430454]
[1723758699853,0.000902,57403.0,57402.0,1.341411]
[1723758700073,0.00219561,57407.0,57406.0,0.456014]
[1723758700274,0.00902001,57415.0,57414.0,0.942647]
[1723758700477,0.00902001,57415.0,57414.0,1.55554354]
[1723758700696,0.00902001,57415.0,57414.0,1.82338554]
[1723758700905,0.00902001,57415.0,57414.0,1.86588554]
[1723758701984,0.01002001,57415.0,57414.0,2.02478554]
[1723758702201,0.00902001,57415.0,57414.0,2.02778554]
[1723758702389,0.00902001,57415.0,57414.0,2.02578554]
[1723758702517,0.01002001,57415.0,57414.0,2.04078554]
[1723758702728,0.01002001,57415.0,57414.0,2.02478554]
[1723758702928,0.01002001,57415.0,57414.0,2.03778554]
[1723758703619,0.01002001,57415.0,57414.0,1.79394354]
[1723758705651,0.01002001,57415.0,57414.0,1.75144354]
[1723758709150,0.01002001,57415.0,57414.0,1.75244354]
[1723758710299,0.01002001,57415.0,57414.0,2.00630554]
[1723758711291,0.01002001,57415.0,57414.0,2.04880554]
[1723758711895,0.01002001,57415.0,57414.0,2.3467942]
[1723758712093,1e-08,57415.0,57414.0,2.39935957]
[1723758712357,0.1,57443.0,57437.0,0.609362]
[1723758712558,0.0923,57441.0,57437.0,0.78091654]
[1723758712759,0.0691,57443.0,57437.0,1.04766154]
[1723758712915,0.0691,57443.0,57437.0,1.29140654]
[1723758713701,0.01002001,57438.0,57437.0,1.29140654]
[1723758714144,0.01802001,57438.0,57437.0,1.29240654]
[1723758714339,0.01702001,57438.0,57437.0,1.29240654]
[1723758714543,0.01702001,57438.0,57437.0,1.29340654]
[1723758714544,0.00902001,57438.0,57437.0,1.29340654]
[1723758714854,0.00902001,57438.0,57437.0,1.29540654]
[1723758715058,0.00902001,57438.0,57437.0,1.29140654]
[1723758715303,0.00902001,57438.0,57437.0,1.04766154]
[1723758715517,0.00902001,57438.0,57437.0,1.03266154]
[1723758716386,0.00902001,57438.0,57437.0,1.03766154]
[1723758716597,0.00902001,57438.0,57437.0,1.02466154]
[1723758717027,0.00902001,57438.0,57437.0,1.03266154]
[1723758717256,0.00902001,57438.0,57437.0,1.05566154]
[1723758717369,0.00902001,57438.0,57437.0,1.04766154]
[1723758717574,0.00902001,57438.0,57437.0,1.06066154]
[1723758719509,0.00902001,57438.0,57437.0,1.14736154]
[1723758719715,0.00902001,57438.0,57437.0,1.06066154]
[1723758719918,0.00902001,57438.0,57437.0,1.14736154]
[1723758720894,0.00902001,57438.0,57437.0,1.06066154]
[1723758721229,0.00902001,57438.0,57437.0,1.04766154]
[1723758721480,0.08162001,57438.0,57437.0,1.05266154]
[1723758721705,0.08162001,57438.0,57437.0,1.06066154]
[1723758721956,0.00902001,57438.0,57437.0,1.06066154]
[1723758722595,0.00902001,57438.0,57437.0,1.14706154]
[1723758723006,0.00902001,57438.0,57437.0,1.13406154]
[1723758723208,0.00902001,57438.0,57437.0,1.13906154]
[1723758723440,0.00902001,57438.0,57437.0,1.14706154]
[1723758723623,0.00902001,57438.0,57437.0,1.14206154]
[1723758723772,0.00902001,57438.0,57437.0,1.04766154]
[1723758723990,0.00902001,57438.0,57437.0,1.05366154]
[1723758724362,0.00902001,57438.0,57437.0,1.04766154]
[1723758724556,0.00902001,57438.0,57437.0,1.05366154]
[1723758724776,0.00902001,57438.0,57437.0,1.06266154]
[1723758725192,0.00902001,57438.0,57437.0,1.27656154]
[1723758725509,0.00902001,57438.0,57437.0,1.52030654]
[1723758725971,0.00902001,57438.0,57437.0,1.51430654]
[1723758726164,0.00902001,57438.0,57437.0,1.50530654]
[1723758726361,0.00902001,57438.0,57437.0,1.51830654]
[1723758726708,0.00902001,57438.0,57437.0,1.51330654]
[1723758726912,0.00902001,57438.0,57437.0,1.51230654]
[1723758727318,0.00902001,57438.0,57437.0,1.51530654]
[1723758727526,0.00902001,57438.0,57437.0,1.52230654]
[1723758727725,0.00902001,57438.0,57437.0,1.52137191]
[1723758727856,0.00902001,57438.0,57437.0,1.80027191]
[1723758728060,0.00902001,57438.0,57437.0,1.82827191]
[1723758728266,0.00902001,57438.0,57437.0,1.83027191]
[1723758728509,0.00902001,57438.0,57437.0,1.86519191]
[1723758728888,0.00902001,57438.0,57437.0,2.10893691]
[1723758729305,0.00902001,57438.0,57437.0,1.85153691]
[1723758729501,0.00902001,57438.0,57437.0,2.09493691]
[1723758729824,0.00902001,57438.0,57437.0,2.10893691]
[1723758730038,0.00902001,57438.0,57437.0,2.08093691]
[1723758730248,0.00902001,57438.0,57437.0,2.09493691]
[1723758730858,0.00902001,57438.0,57437.0,2.07543691]
[1723758731053,0.00902001,57438.0,57437.0,2.06143691]
[1723758731690,0.00902001,57438.0,57437.0,1.81569191]
[1723758731891,0.00902001,57438.0,57437.0,1.79477191]
[1723758732094,0.00902001,57438.0,57437.0,1.79577191]
[1723758732328,0.00902001,57438.0,57437.0,1.79677191]
[1723758733152,0.00902001,57438.0,57437.0,1.78277191]
[1723758733588,0.00902001,57438.0,57437.0,1.79677191]
[1723758734854,0.00902001,57438.0,57437.0,1.80459432]
[1723758735357,0.00902001,57438.0,57437.0,2.04833932]
[1723758736225,0.009135,57454.0,57446.0,0.087]
[1723758736428,0.009135,57454.0,57453.0,0.121838]
[1723758736585,0.165535,57454.0,57453.0,0.78074654]
[1723758737650,0.165535,57454.0,57453.0,0.78874654]
[1723758738106,0.165535,57454.0,57453.0,1.03242354]